bitfinex-derivatives/quotes_BTCF0:USTF0_20241020
["timestamp","ask_amount","ask_price","bid_price","bid_amount"]
[1729467236752,0.09304427,69160.0,69158.0,0.009]
[1729467236753,0.02073727,69160.0,69158.0,0.009]
[1729467236955,0.072305,69162.0,69159.0,0.0309]
[1729467237155,0.072305,69162.0,69161.0,0.072305]
[1729467239261,0.072305,69162.0,69161.0,0.075305]
[1729467239442,0.072305,69162.0,69161.0,0.13302284]
[1729467239751,0.072305,69162.0,69161.0,0.075305]
[1729467241048,0.072305,69162.0,69161.0,0.003]
[1729467251969,0.103605,69162.0,69161.0,0.003]
[1729467252864,0.072305,69162.0,69161.0,0.003]
[1729467258959,0.433105,69162.0,69161.0,0.003]
[1729467261168,0.433105,69162.0,69161.0,0.18544795]
[1729467261377,0.433105,69162.0,69161.0,0.07521647]
[1729467261567,0.433105,69162.0,69161.0,0.003]
[1729467261874,0.433105,69162.0,69161.0,0.07521647]
[1729467262270,0.433105,69162.0,69161.0,0.18545059]
[1729467262771,0.433105,69162.0,69161.0,0.11323412]
[1729467266778,0.02307549,69165.0,69161.0,0.11323412]
[1729467266779,0.02307549,69165.0,69161.0,0.11322255]
[1729467266968,0.37462538,69178.0,69162.0,0.99938255]
[1729467267164,0.072291,69175.0,69174.0,0.05787585]
[1729467267363,0.37462538,69178.0,69173.0,0.072293]
[1729467267571,0.07229,69176.0,69175.0,0.05786399]
[1729467267776,0.37462538,69178.0,69174.0,0.05786399]
[1729467267978,0.37462538,69178.0,69173.0,0.07234481]
[1729467268274,0.37462538,69178.0,69171.0,0.3608]
[1729467268275,0.072294,69172.0,69171.0,0.43314481]
[1729467268868,0.072294,69172.0,69171.0,0.54335451]
[1729467269374,0.072294,69172.0,69162.0,0.4242]
[1729467269375,0.3608,69172.0,69169.0,0.07234481]
[1729467269576,0.3628,69172.0,69168.0,0.07234481]
[1729467269780,0.072298,69168.0,69167.0,0.07234481]
[1729467270071,0.3628,69172.0,69166.0,0.07226176]
[1729467270072,0.072299,69167.0,69166.0,0.07226176]
[1729467270479,0.072302,69165.0,69162.0,0.42416]
[1729467270665,0.072302,69165.0,69163.0,0.072303]
[1729467270862,0.3638,69172.0,69162.0,0.06336]
[1729467270863,0.072297,69170.0,69162.0,0.06336]
[1729467271066,0.072297,69170.0,69169.0,0.05780659]
[1729467272074,0.3628,69172.0,69168.0,0.05780659]
[1729467272263,0.072297,69169.0,69168.0,0.05780659]
[1729467272472,0.072297,69169.0,69166.0,0.05780659]
[1729467272773,0.072299,69167.0,69166.0,0.05780659]
[1729467274783,0.073299,69167.0,69166.0,0.05780659]
[1729467275165,0.075299,69167.0,69166.0,0.05780659]
[1729467275780,0.075299,69167.0,69165.0,0.05780659]
[1729467276075,0.075299,69167.0,69165.0,0.13010759]
[1729467276677,0.075299,69167.0,69166.0,0.05780659]
[1729467277277,0.003,69167.0,69165.0,0.05780659]
[1729467277476,0.3608,69166.0,69161.0,0.07226176]
[1729467277875,0.072304,69163.0,69160.0,0.072306]
[1729467278378,0.003,69167.0,69166.0,0.0723]
[1729467278579,0.003,69167.0,69166.0,0.07223654]
[1729467278883,0.001,69167.0,69166.0,0.0723]
[1729467279178,0.001,69167.0,69166.0,0.18251614]
[1729467280076,0.072295,69171.0,69166.0,0.18251614]
[1729467280381,0.072295,69171.0,69167.0,0.25474575]
[1729467280578,0.072295,69171.0,69167.0,0.14452961]
[1729467281285,0.074295,69171.0,69168.0,0.072298]
[1729467281473,0.002,69171.0,69168.0,0.072298]
[1729467281673,0.003,69171.0,69168.0,0.072298]
[1729467282587,0.003,69171.0,69167.0,0.07223061]
[1729467282788,0.003,69171.0,69166.0,0.02130822]
[1729467282789,0.003,69171.0,69170.0,0.072296]
[1729467283783,0.001,69171.0,69170.0,0.072296]
[1729467283986,0.002,69171.0,69170.0,0.072296]
[1729467284187,0.003,69171.0,69170.0,0.072296]
[1729467287182,0.003,69171.0,69170.0,0.433096]
[1729467288088,0.003,69171.0,69170.0,0.072296]
[1729467288884,0.003,69171.0,69170.0,0.1825034]
[1729467291383,0.003,69171.0,69170.0,0.18250225]
[1729467292480,0.003,69171.0,69170.0,0.072296]
[1729467292885,0.003,69171.0,69166.0,0.38286822]
[1729467292886,0.003,69171.0,69166.0,0.07295821]
[1729467293197,0.003,69171.0,69166.0,0.05777188]
[1729467293198,0.433099,69167.0,69166.0,0.05777188]
[1729467293487,0.3608,69167.0,69165.0,0.05777188]
[1729467293692,0.3608,69167.0,69164.0,0.05777188]
[1729467293693,0.0723,69166.0,69164.0,0.05777188]
[1729467293880,0.0723,69166.0,69162.0,0.13007588]
[1729467294080,0.0723,69166.0,69163.0,0.072303]
[1729467294286,0.3608,69167.0,69163.0,0.13007488]
[1729467294480,0.433099,69167.0,69166.0,0.04333742]
[1729467294682,0.072306,69160.0,69159.0,0.05778383]
[1729467294886,0.3608,69160.0,69150.0,0.07219821]
[1729467295086,0.3608,69153.0,69150.0,0.07219821]
[1729467295295,0.3608,69153.0,69149.0,0.072318]
[1729467295296,0.0318,69152.0,69149.0,0.14451621]
[1729467295498,0.0318,69152.0,69149.0,0.072318]
[1729467295987,0.0318,69152.0,69149.0,0.14451621]
[1729467296186,0.0318,69152.0,69150.0,0.072317]
[1729467296591,0.0318,69152.0,69145.0,0.07219821]
[1729467296784,0.0318,69152.0,69150.0,0.072317]
[1729467296990,0.0328,69152.0,69151.0,0.072316]
[1729467297495,0.0338,69152.0,69151.0,0.072316]
[1729467298396,0.0328,69152.0,69151.0,0.072316]
[1729467298693,0.0338,69152.0,69151.0,0.083316]
[1729467299788,0.0338,69152.0,69151.0,0.093316]
[1729467300391,0.05926221,69152.0,69151.0,0.093316]
[1729467301294,0.02746221,69152.0,69151.0,0.093316]
[1729467302690,0.002,69152.0,69151.0,0.093316]
[1729467303592,0.3608,69160.0,69151.0,0.093316]
[1729467303788,0.3608,69160.0,69159.0,0.072308]
[1729467303994,0.3608,69160.0,69155.0,0.3608]
[1729467303995,0.02583629,69163.0,69162.0,0.072304]
[1729467304298,0.3608,69166.0,69155.0,0.3608]
[1729467304299,0.3608,69166.0,69164.0,0.072302]
[1729467304697,0.02887101,69167.0,69166.0,0.0723]
[1729467304698,0.00216952,69167.0,69166.0,0.0723]
[1729467306902,0.00416952,69167.0,69166.0,0.0723]
[1729467307797,0.00516952,69167.0,69166.0,0.0723]
[1729467308496,0.00516952,69167.0,69166.0,0.09852757]
[1729467308896,0.003,69167.0,69166.0,0.09852757]
[1729467313806,0.075299,69167.0,69166.0,0.09852757]
[1729467314596,0.075299,69167.0,69166.0,0.0723]
[1729467316901,0.003,69167.0,69166.0,0.0723]
[1729467320006,0.003,69167.0,69166.0,0.1027]
[1729467323500,0.04031436,69178.0,69171.0,0.072294]
[1729467323696,0.072294,69172.0,69171.0,0.072294]
[1729467324207,0.3608,69173.0,69165.0,0.02557467]
[1729467324208,0.072297,69169.0,69165.0,0.02557467]
[1729467324390,0.072297,69169.0,69162.0,0.07219821]
[1729467324391,0.072297,69169.0,69168.0,0.072298]
[1729467325196,0.0723,69167.0,69162.0,0.07219821]
[1729467325491,0.0723,69167.0,69161.0,0.45894799]
[1729467325895,0.0723,69167.0,69162.0,0.07219821]
[1729467326508,0.0733,69167.0,69162.0,0.07219821]
[1729467326710,0.0753,69167.0,69162.0,0.07219821]
[1729467327003,0.0753,69167.0,69161.0,0.09814799]
[1729467327212,0.0753,69167.0,69163.0,0.07219821]
[1729467327511,0.0753,69167.0,69166.0,0.0723]
[1729467328613,0.10147445,69167.0,69166.0,0.0723]
[1729467329714,0.072303,69164.0,69163.0,0.072303]
[1729467330010,0.072308,69160.0,69159.0,0.072307]
[1729467331402,0.072304,69163.0,69161.0,0.072305]
[1729467332314,0.072304,69163.0,69159.0,0.004]
[1729467332315,0.3608,69164.0,69159.0,0.004]
[1729467332511,0.072306,69161.0,69159.0,0.003]
[1729467332709,0.072306,69161.0,69159.0,0.07519821]
[1729467333309,0.072306,69161.0,69160.0,0.18242373]
[1729467334321,0.072306,69161.0,69160.0,0.1102255]
[1729467334525,0.072306,69161.0,69160.0,0.1122255]
[1729467335118,0.072306,69161.0,69160.0,0.1152255]
[1729467337210,0.072306,69161.0,69160.0,0.187483]
[1729467337611,0.072306,69161.0,69160.0,0.18748301]
[1729467337813,0.072306,69161.0,69160.0,0.07725751]
[1729467338119,0.072306,69161.0,69160.0,0.18748447]
[1729467338413,0.072306,69161.0,69160.0,0.005]
[1729467338618,0.072306,69161.0,69160.0,0.077306]
[1729467338819,0.072306,69161.0,69160.0,0.005]
[1729467344724,0.072306,69161.0,69160.0,0.18748314]
[1729467346017,0.433106,69161.0,69160.0,0.18748314]
[1729467348323,0.433106,69161.0,69160.0,0.11522947]
[1729467348517,0.433106,69161.0,69160.0,0.07724262]
[1729467348717,0.433106,69161.0,69160.0,0.005]
[1729467348919,0.433106,69161.0,69160.0,0.07724262]
[1729467351225,0.433106,69161.0,69160.0,0.18747525]
[1729467353216,0.433106,69161.0,69160.0,0.11523263]
[1729467354825,0.072306,69161.0,69160.0,0.11523263]
[1729467355031,0.433106,69161.0,69160.0,0.11523263]
[1729467355524,0.433106,69161.0,69160.0,0.18752105]
[1729467355828,0.433106,69161.0,69160.0,0.005]
[1729467357131,0.072306,69161.0,69160.0,0.005]
[1729467357342,0.433106,69161.0,69160.0,0.005]
[1729467359221,0.433106,69161.0,69160.0,0.18752415]
[1729467359617,0.433106,69161.0,69160.0,0.11523573]
[1729467359926,0.433106,69161.0,69160.0,0.005]
[1729467360124,0.433106,69161.0,69160.0,0.06285772]
[1729467360921,0.433106,69161.0,69160.0,0.06285923]
[1729467361532,0.433106,69161.0,69160.0,0.005]
[1729467365541,0.072306,69161.0,69160.0,0.005]
[1729467365732,0.433106,69161.0,69160.0,0.005]
[1729467366534,0.072306,69161.0,69160.0,0.005]
[1729467366735,0.433106,69161.0,69160.0,0.005]
[1729467368039,0.072306,69161.0,69160.0,0.005]
[1729467368240,0.433106,69161.0,69160.0,0.005]
[1729467368435,0.433106,69161.0,69160.0,0.06283406]
[1729467369444,0.072306,69161.0,69160.0,0.06283406]
[1729467369636,0.433106,69161.0,69160.0,0.06283406]
[1729467372652,0.433106,69161.0,69134.0,0.072333]
[1729467372653,0.072317,69150.0,69144.0,0.08670505]
[1729467372941,0.072333,69135.0,69133.0,0.08676415]
[1729467373137,0.3608,69134.0,69130.0,0.08676415]
[1729467373338,0.072336,69132.0,69131.0,0.11027706]
[1729467373742,0.072342,69126.0,69125.0,0.11876415]
[1729467373938,0.433142,69126.0,69125.0,0.22904747]
[1729467374647,0.433142,69126.0,69125.0,0.11028332]
[1729467374648,1.933142,69126.0,69125.0,0.11028332]
[1729467375648,1.8608,69126.0,69119.0,0.11236273]
[1729467375843,1.934142,69126.0,69125.0,0.011]
[1729467376149,1.935142,69126.0,69125.0,0.12828557]
[1729467376651,1.935142,69126.0,69125.0,0.018]
[1729467377041,0.435142,69126.0,69125.0,0.018]
[1729467378148,0.46154355,69126.0,69125.0,0.018]
[1729467381160,0.072354,69115.0,69114.0,0.064]
[1729467381350,0.3608,69115.0,69114.0,0.17429894]
[1729467381846,0.3608,69115.0,69114.0,0.064]
[1729467382443,0.434154,69115.0,69114.0,0.078]
[1729467382954,0.435154,69115.0,69114.0,0.024]
[1729467383846,0.435154,69115.0,69102.0,0.08676415]
[1729467383847,2.29588,69115.0,69102.0,0.08676415]
[1729467384058,0.072368,69101.0,69100.0,0.08676415]
[1729467384249,0.31009687,69103.0,69100.0,0.11031552]
[1729467384445,0.31009687,69103.0,69099.0,0.08893477]
[1729467384446,0.38246287,69103.0,69101.0,0.11031552]
[1729467384657,0.072367,69102.0,69099.0,0.00217062]
[1729467384858,0.072367,69102.0,69100.0,0.11031743]
[1729467385056,0.072367,69102.0,69101.0,0.11031743]
[1729467385255,0.072367,69102.0,69101.0,0.1103164]
[1729467386348,0.074367,69102.0,69101.0,0.1103164]
[1729467386660,0.074367,69102.0,69101.0,0.11031546]
[1729467386851,0.26219687,69103.0,69102.0,0.072367]
[1729467387047,0.43316,69109.0,69102.0,0.14201295]
[1729467387353,0.43316,69109.0,69104.0,0.072364]
[1729467388255,0.45882565,69109.0,69104.0,0.072364]
[1729467388560,0.45982565,69109.0,69104.0,0.072364]
[1729467389144,0.072363,69107.0,69102.0,0.0317]
[1729467389358,0.072363,69107.0,69103.0,0.11030886]
[1729467389550,0.072363,69107.0,69104.0,0.11031061]
[1729467389758,0.072363,69107.0,69102.0,0.0317]
[1729467389959,0.072363,69107.0,69103.0,0.11031096]
[1729467390151,0.072363,69107.0,69104.0,0.1103109]
[1729467390351,0.072363,69107.0,69105.0,0.1103109]
[1729467390550,0.072363,69107.0,69103.0,0.0318]
[1729467390756,0.072363,69107.0,69104.0,0.11031057]
[1729467390960,0.072363,69107.0,69105.0,0.11031057]
[1729467391158,0.072363,69107.0,69103.0,0.0318]
[1729467391358,0.072363,69107.0,69104.0,0.11031069]
[1729467391561,0.072363,69107.0,69105.0,0.11031069]
[1729467391757,0.072363,69107.0,69103.0,0.0318]
[1729467392059,0.38646565,69109.0,69104.0,0.11031077]
[1729467392060,0.072363,69106.0,69104.0,0.11031077]
[1729467392258,0.38646565,69109.0,69105.0,0.11031077]
[1729467392458,0.38646565,69109.0,69103.0,0.0318]
[1729467392660,0.38646565,69109.0,69104.0,0.11031106]
[1729467392661,0.072365,69105.0,69104.0,0.11031106]
[1729467395360,0.073365,69105.0,69104.0,0.11031106]
[1729467395862,0.073365,69105.0,69104.0,0.19707521]
[1729467397552,0.073365,69105.0,69104.0,0.11031106]
[1729467399559,0.073365,69105.0,69104.0,0.19672472]
[1729467400561,0.073365,69105.0,69104.0,0.11031106]
[1729467401660,0.073365,69105.0,69104.0,0.24457941]
[1729467403860,0.02266111,69105.0,69104.0,0.24457941]
[1729467404176,0.02266111,69105.0,69104.0,0.24459156]
[1729467404177,0.001,69105.0,69104.0,0.24459156]
[1729467405451,0.073364,69105.0,69104.0,0.24459156]
[1729467408965,0.073364,69105.0,69104.0,0.24460217]
[1729467410667,0.507484,69105.0,69104.0,0.24460217]
[1729467411267,0.43412,69105.0,69104.0,0.11032179]
[1729467412368,0.506484,69105.0,69104.0,0.11032179]
[1729467412771,2.006484,69105.0,69104.0,0.11032179]
[1729467413674,1.93412,69105.0,69104.0,0.11032502]
[1729467413975,2.006484,69105.0,69104.0,0.11032502]
[1729467415072,0.072378,69092.0,69091.0,0.0316]
[1729467415263,0.072378,69092.0,69091.0,0.16588853]
[1729467416178,0.072378,69092.0,69091.0,0.43974803]
[1729467416376,0.072378,69092.0,69091.0,0.32414215]
[1729467416676,0.073378,69092.0,69091.0,0.32414215]
[1729467417374,0.074378,69092.0,69091.0,0.32414215]
[1729467418076,0.03815808,69092.0,69091.0,0.32414215]
[1729467418277,0.03815808,69092.0,69091.0,0.39652115]
[1729467418278,0.002,69092.0,69091.0,0.39652115]
[1729467418463,0.002,69092.0,69091.0,0.103979]
[1729467418667,0.002,69092.0,69091.0,0.3965115]
[1729467418863,1.57409501,69095.0,69091.0,0.3965115]
[1729467419188,1.59903788,69095.0,69093.0,0.10126961]
[1729467419369,0.09903788,69095.0,69094.0,0.13428642]
[1729467419863,0.09903788,69095.0,69094.0,0.29252845]
[1729467420478,0.10003788,69095.0,69094.0,0.29252845]
[1729467421079,0.02766288,69095.0,69094.0,0.29252845]
[1729467421368,0.02766288,69095.0,69094.0,0.46617301]
[1729467421569,0.02766288,69095.0,69094.0,0.20666056]
[1729467421881,0.02766288,69095.0,69094.0,0.20666054]
[1729467422067,0.02766288,69095.0,69094.0,0.23836054]
[1729467423371,0.02766288,69095.0,69094.0,0.16598454]
[1729467426785,0.02766288,69095.0,69094.0,0.16598361]
[1729467427673,1.50172001,69104.0,69094.0,0.23835961]
[1729467427878,0.02617031,69104.0,69103.0,0.072365]
[1729467428073,0.433164,69106.0,69103.0,0.072365]
[1729467428074,0.36248,69106.0,69103.0,0.072365]
[1729467428276,0.36248,69106.0,69094.0,0.104076]
[1729467428277,0.3608,69106.0,69104.0,0.0626]
[1729467428489,0.3608,69106.0,69105.0,0.072364]
[1729467429067,0.3608,69106.0,69105.0,0.13426806]
[1729467429276,0.072364,69105.0,69104.0,0.0316]
[1729467429483,0.072364,69105.0,69104.0,0.16587059]
[1729467429879,0.072364,69105.0,69104.0,0.27618434]
[1729467430267,0.072364,69105.0,69104.0,0.14191375]
[1729467430472,0.076364,69105.0,69104.0,0.14191375]
[1729467431073,0.078364,69105.0,69104.0,0.14191375]
[1729467431275,0.078364,69105.0,69104.0,0.27618786]
[1729467431469,0.078364,69105.0,69104.0,0.0316]
[1729467431778,0.078364,69105.0,69104.0,0.27619286]
[1729467433178,0.439164,69105.0,69104.0,0.27619286]
[1729467434194,0.439164,69105.0,69104.0,0.14191759]
[1729467435086,0.439164,69105.0,69104.0,0.27619345]
[1729467436284,0.3668,69105.0,69104.0,0.103965]
[1729467436588,0.3668,69105.0,69104.0,0.34855575]
[1729467437677,0.439164,69105.0,69104.0,0.27619075]
[1729467440189,0.3668,69105.0,69104.0,0.27619075]
[1729467440383,0.3668,69105.0,69104.0,0.0316]
[1729467445385,0.006,69105.0,69104.0,0.0316]
[1729467446891,0.006,69105.0,69104.0,0.103965]
[1729467447092,0.006,69105.0,69104.0,0.16184812]
[1729467447480,0.006,69105.0,69104.0,0.103965]
[1729467448291,0.006,69105.0,69104.0,0.16179754]
[1729467449990,0.006,69105.0,69104.0,0.103965]
[1729467452392,0.006,69105.0,69104.0,0.14731985]
[1729467453288,0.006,69105.0,69104.0,0.103965]
[1729467453691,0.006,69105.0,69104.0,0.14731985]
[1729467454290,0.006,69105.0,69104.0,0.103965]
[1729467466600,0.006,69105.0,69104.0,0.16179754]
[1729467467311,0.006,69105.0,69104.0,0.103965]
[1729467468506,0.00172001,69110.0,69104.0,0.103965]
[1729467468807,0.002171,69119.0,69104.0,0.103965]
[1729467468808,0.002171,69119.0,69118.0,0.07235]
[1729467469400,0.002171,69119.0,69118.0,0.057853]
[1729467469401,0.07452,69119.0,69118.0,0.057853]
[1729467469600,0.07452,69119.0,69117.0,0.057853]
[1729467470110,0.002171,69119.0,69118.0,0.04339177]
[1729467470304,0.002171,69119.0,69115.0,0.04339177]
[1729467470603,0.002171,69119.0,69113.0,0.04338603]
[1729467470604,0.072355,69114.0,69113.0,0.04338603]
[1729467470812,0.3608,69114.0,69110.0,0.04339073]
[1729467470994,0.3608,69114.0,69100.0,0.05785518]
[1729467470995,0.072359,69110.0,69100.0,0.05785518]
[1729467471197,0.3608,69104.0,69097.0,0.05785518]
[1729467471397,1.5321,69103.0,69095.0,0.05785518]
[1729467472206,1.5321,69103.0,69097.0,0.004]
[1729467472401,0.07237,69100.0,69097.0,0.004]
[1729467473199,0.072371,69099.0,69097.0,0.004]
[1729467474004,0.072371,69098.0,69097.0,0.004]
[1729467474904,0.072371,69098.0,69093.0,0.072376]
[1729467475608,0.073371,69098.0,69094.0,0.072375]
[1729467476708,0.072371,69098.0,69094.0,0.072375]
[1729467477009,0.001,69098.0,69090.0,0.10398]
[1729467477209,0.072375,69095.0,69090.0,0.10398]
[1729467478511,0.073375,69095.0,69090.0,0.10398]
[1729467478712,0.074375,69095.0,69090.0,0.10398]
[1729467480317,0.074375,69095.0,69093.0,0.072377]
[1729467480618,0.074375,69095.0,69094.0,0.072376]
[1729467480619,0.002,69095.0,69094.0,0.072376]
[1729467481906,0.001,69095.0,69094.0,0.072376]
[1729467482106,0.002,69095.0,69094.0,0.072376]
[1729467484208,0.001,69095.0,69094.0,0.072376]
[1729467484406,0.002,69095.0,69094.0,0.072376]
[1729467487908,0.00120001,69103.0,69102.0,0.072367]
[1729467488103,0.072356,69113.0,69108.0,0.072361]
[1729467488307,1.5,69115.0,69099.0,0.41858012]
[1729467488514,0.072364,69105.0,69100.0,0.136569]
[1729467488718,0.072364,69105.0,69101.0,0.072368]
[1729467489120,0.001,69103.0,69101.0,0.072368]
[1729467490418,0.001,69103.0,69102.0,0.072367]
[1729467490618,0.072366,69104.0,69102.0,0.072367]
[1729467490820,0.001,69105.0,69104.0,0.072365]
[1729467491016,0.001,69105.0,69100.0,0.072368]
[1729467491317,0.001,69105.0,69101.0,0.073368]
[1729467491318,0.001,69103.0,69101.0,0.073368]
[1729467491516,0.002,69103.0,69101.0,0.074368]
[1729467491717,0.002,69103.0,69101.0,0.001]
[1729467491918,0.001,69103.0,69102.0,0.074367]
[1729467492319,0.001,69104.0,69102.0,0.072367]
[1729467492514,0.001,69105.0,69101.0,0.002]
[1729467492515,0.073366,69103.0,69101.0,0.002]
[1729467493520,0.073366,69103.0,69101.0,0.074368]
[1729467493916,0.072366,69103.0,69102.0,0.001]
[1729467494227,0.073366,69103.0,69102.0,0.001]
[1729467494617,0.072368,69102.0,69101.0,0.001]
[1729467495122,0.072369,69101.0,69098.0,0.05778012]
[1729467495327,0.072369,69101.0,69098.0,0.072371]
[1729467495514,0.072369,69101.0,69099.0,0.07237]
[1729467497316,0.073369,69101.0,69099.0,0.07237]
[1729467497823,0.072369,69101.0,69099.0,0.07237]
[1729467498014,0.073369,69101.0,69099.0,0.07337]
[1729467498324,0.074369,69101.0,69099.0,0.07337]
[1729467498829,0.072369,69100.0,69099.0,0.001]
[1729467500427,1.24579032,69100.0,69093.0,0.05778012]
[1729467500729,0.072396,69074.0,69073.0,0.10313563]
[1729467500922,0.072396,69074.0,69073.0,0.0308]
[1729467501812,0.072396,69074.0,69073.0,0.0318]
[1729467502020,0.073396,69074.0,69073.0,0.0318]
[1729467502716,0.074396,69074.0,69073.0,0.0318]
[1729467503917,0.074396,69074.0,69073.0,0.0308]
[1729467503918,0.073396,69074.0,69073.0,0.0308]
[1729467504118,0.074396,69074.0,69073.0,0.0308]
[1729467505027,0.10113225,69074.0,69073.0,0.0308]
[1729467505223,0.10013225,69074.0,69073.0,0.0308]
[1729467505430,0.10113225,69074.0,69073.0,0.0308]
[1729467508428,0.10113225,69074.0,69066.0,0.0301]
[1729467508429,0.0724,69072.0,69068.0,0.072403]
[1729467508934,0.02873625,69074.0,69069.0,0.072401]
[1729467509237,0.0724,69071.0,69067.0,0.0304]
[1729467509622,0.02873625,69074.0,69067.0,0.0304]
[1729467509823,0.072403,69068.0,69067.0,0.0304]
[1729467511520,0.073403,69068.0,69067.0,0.0304]
[1729467512730,0.074403,69068.0,69067.0,0.0304]
[1729467515629,0.074403,69068.0,69067.0,0.102804]
[1729467516643,0.03816817,69068.0,69067.0,0.102804]
[1729467517529,0.002,69068.0,69067.0,0.463604]
[1729467517734,0.433192,69078.0,69077.0,0.072393]
[1729467517939,0.07239,69081.0,69080.0,0.072389]
[1729467518136,0.072385,69085.0,69081.0,0.072389]
[1729467518336,0.3283,69089.0,69074.0,0.3608]
[1729467518534,0.072386,69084.0,69080.0,0.07239]
[1729467518838,0.072389,69082.0,69080.0,0.07239]
[1729467519133,0.072389,69082.0,69081.0,0.072389]
[1729467519741,0.072384,69087.0,69081.0,0.072389]
[1729467519940,0.002,69084.0,69082.0,0.0326]
[1729467520933,0.072387,69083.0,69082.0,0.0326]
[1729467521135,0.002,69084.0,69074.0,0.3608]
[1729467521328,0.002,69084.0,69072.0,0.072399]
[1729467521524,0.002,69084.0,69068.0,0.16476]
[1729467521525,0.002,69084.0,69068.0,0.0326]
[1729467521728,0.002,69082.0,69069.0,0.072402]
[1729467521944,0.072395,69075.0,69069.0,0.072402]
[1729467522332,0.072397,69074.0,69070.0,0.072401]
[1729467522533,0.005,69084.0,69068.0,0.0326]
[1729467523131,0.072398,69073.0,69069.0,0.001]
[1729467523531,0.072398,69073.0,69069.0,0.073401]
[1729467523737,0.072398,69073.0,69069.0,0.072401]
[1729467524336,0.072399,69072.0,69069.0,0.073401]
[1729467524639,0.0724,69071.0,69069.0,0.074401]
[1729467525741,0.0724,69071.0,69069.0,0.073401]
[1729467526040,0.0734,69071.0,69069.0,0.073401]
[1729467526241,0.0744,69071.0,69070.0,0.072401]
[1729467527641,0.0734,69071.0,69070.0,0.073401]
[1729467527842,0.0744,69071.0,69070.0,0.074401]
[1729467529755,0.09996826,69071.0,69070.0,0.074401]
[1729467531942,0.09996826,69071.0,69070.0,0.002]
[1729467539041,0.02756826,69071.0,69070.0,0.074401]
[1729467540547,0.002,69071.0,69070.0,0.074401]
[1729467540844,0.002,69071.0,69070.0,0.137601]
[1729467542144,0.002,69071.0,69070.0,0.074401]
[1729467542344,0.002,69071.0,69070.0,0.107201]
[1729467546846,0.002,69071.0,69070.0,0.0348]
[1729467547951,0.002,69071.0,69070.0,0.107201]
[1729467548154,0.002,69071.0,69070.0,0.468001]
[1729467548851,0.00217184,69085.0,69080.0,0.07239]
[1729467549158,0.00217184,69085.0,69070.0,0.82992]
[1729467549159,0.00217184,69085.0,69082.0,0.072387]
[1729467550057,0.00217184,69085.0,69084.0,0.433186]
[1729467550058,0.0286338,69085.0,69084.0,0.433186]
[1729467550853,0.0306338,69085.0,69084.0,0.433186]
[1729467551150,0.005,69085.0,69084.0,0.433186]
[1729467551558,0.003,69085.0,69084.0,0.433186]
[1729467551858,0.005,69085.0,69084.0,0.433186]
[1729467552643,1.5,69095.0,69094.0,0.072376]
[1729467552951,1.5,69095.0,69084.0,0.433186]
[1729467552952,0.00217129,69103.0,69098.0,0.072371]
[1729467553253,0.00217129,69103.0,69099.0,0.3908]
[1729467553441,0.072369,69101.0,69099.0,0.3908]
[1729467553645,0.00217129,69103.0,69093.0,0.104477]
[1729467553646,0.43317,69100.0,69093.0,0.104477]
[1729467554359,0.005,69095.0,69093.0,0.104477]
[1729467554750,0.002,69095.0,69093.0,0.104477]
[1729467555142,0.43933,69100.0,69093.0,0.104477]
[1729467555446,0.003,69095.0,69093.0,0.104477]
[1729467556049,0.005,69095.0,69093.0,0.0321]
[1729467558556,0.005,69095.0,69090.0,0.433939]
[1729467558750,0.005,69095.0,69090.0,0.433179]
[1729467559559,0.003,69095.0,69090.0,0.433179]
[1729467559746,0.03092967,69095.0,69090.0,0.433179]
[1729467560146,0.03092967,69095.0,69090.0,0.3608]
[1729467560361,0.03092967,69095.0,69091.0,0.072378]
[1729467561652,0.072376,69094.0,69090.0,0.3608]
[1729467561854,0.3608,69094.0,69083.0,0.072386]
[1729467562053,0.3608,69094.0,69078.0,0.072392]
[1729467562054,0.072385,69085.0,69078.0,0.072392]
[1729467562250,0.102486,69084.0,69078.0,0.072392]
[1729467562460,1.5,69083.0,69078.0,0.072392]
[1729467563254,1.5,69083.0,69076.0,0.3608]
[1729467563255,1.5,69083.0,69079.0,0.072391]
[1729467563561,0.001,69083.0,69079.0,0.072391]
[1729467563963,0.002,69083.0,69079.0,0.072391]
[1729467564156,0.002,69083.0,69080.0,0.07239]
[1729467564656,0.001,69083.0,69080.0,0.07239]
[1729467565061,0.0301,69084.0,69080.0,0.07239]
[1729467565255,0.001,69083.0,69080.0,0.07239]
[1729467565860,0.0301,69084.0,69080.0,0.07239]
[1729467566163,0.0301,69084.0,69080.0,0.07539]
[1729467566364,0.0301,69084.0,69080.0,0.07739]
[1729467567264,0.0301,69084.0,69081.0,0.072389]
[1729467567659,0.05570643,69084.0,69081.0,0.072389]
[1729467568151,0.05570643,69084.0,69080.0,0.003]
[1729467568358,0.05570643,69084.0,69080.0,0.07539]
[1729467568966,0.05570643,69084.0,69081.0,0.001]
[1729467569458,0.05570643,69084.0,69081.0,0.002]
[1729467569668,0.05570643,69084.0,69081.0,0.001]
[1729467569866,0.05570643,69084.0,69080.0,0.07239]
[1729467570072,0.05670643,69084.0,69080.0,0.07239]
[1729467570456,0.05570643,69084.0,69080.0,0.07239]
[1729467570669,0.05670643,69084.0,69080.0,0.07239]
[1729467570862,0.3608,69083.0,69080.0,0.07239]
[1729467572163,0.3608,69083.0,69080.0,0.07339]
[1729467573270,0.05570643,69084.0,69080.0,0.07339]
[1729467573468,0.3608,69083.0,69080.0,0.07339]
[1729467574463,0.3618,69083.0,69080.0,0.07339]
[1729467574979,0.3618,69083.0,69080.0,0.07239]
[1729467575757,0.001,69083.0,69080.0,0.07239]
[1729467576071,0.3618,69083.0,69080.0,0.07239]